fUST/lending_fUST_20240121
["ID","MTS","AMOUNT","RATE_DAILY","PERIOD"]
[312359483,1705827051349,-500.0,0.00030958,2]
[312359484,1705827051359,-1268.28,0.00030958,2]
[312359485,1705827051368,-500.0,0.00030958,2]
[312359486,1705827051377,-2407.24,0.00030958,2]
[312359487,1705827051388,-500.0,0.00030958,2]
[312359488,1705827051399,-500.0,0.00030958,2]
[312359489,1705827051408,-500.0,0.00030958,2]
[312359490,1705827051417,-500.0,0.00030958,2]
[312359491,1705827051426,-171.16187186,0.00030958,2]
[312359492,1705827051435,-6246.55,0.00030958,2]
[312359493,1705827051444,-500.0,0.00030958,2]
[312359494,1705827051454,-500.0,0.00030958,2]
[312359495,1705827051463,-500.0,0.00030958,2]
[312359496,1705827051472,-1357.4,0.00030958,2]
[312359497,1705827051481,-661.72,0.00030958,2]
[312359498,1705827051491,-735.3,0.00030958,2]
[312359499,1705827051500,-500.0,0.00030958,2]
[312359500,1705827051509,-8300.67,0.00030958,2]
[312359501,1705827051519,-500.0,0.00030958,2]
[312359502,1705827051529,-500.0,0.00030958,2]
[312359503,1705827051538,-500.0,0.00030958,2]
[312359504,1705827051547,-1502.85,0.00030958,2]
[312359505,1705827051558,-500.0,0.00030958,2]
[312359506,1705827051567,-500.0,0.00030958,2]
[312359507,1705827051576,-8991.16,0.00030958,2]
[312359508,1705827051586,-1228.33,0.00030958,2]
[312359509,1705827051595,-500.0,0.00030958,2]
[312359510,1705827051605,-1296.72,0.00030958,2]
[312359511,1705827051614,-500.0,0.00030958,2]
[312359512,1705827051623,-2208.26,0.00030958,2]
[312359513,1705827051632,-1000.0,0.00030958,2]
[312359514,1705827051641,-503.30082423,0.00030958,2]
[312359515,1705827051650,-500.0,0.00030958,2]
[312359516,1705827051659,-500.0,0.00030958,2]
[312359517,1705827051668,-500.0,0.00030958,2]
[312359518,1705827051677,-500.0,0.00030958,2]
[312359519,1705827051687,-833.1,0.00030958,2]
[312359520,1705827051696,-1854.73,0.00030958,2]
[312359521,1705827051705,-15825.79,0.00030958,2]
[312359522,1705827051714,-500.0,0.00030958,2]
[312359523,1705827051724,-250.97839217,0.00030958,2]
[312359524,1705827051733,-500.0,0.00030958,2]
[312359525,1705827051742,-500.0,0.00030958,2]
[312359526,1705827051753,-706.41,0.00030958,2]
[312359527,1705827051763,-1364.99,0.00030958,2]
[312359528,1705827051772,-521.26,0.00030958,2]
[312359529,1705827051782,-500.0,0.00030958,2]
[312359530,1705827051791,-163.8931268,0.00030958,2]
[312359531,1705827051800,-840.13,0.00030958,2]
[312359532,1705827051809,-702.19,0.00030958,2]
[312359533,1705827051818,-500.0,0.00030958,2]
[312359534,1705827051828,-500.0,0.00030958,2]
[312359535,1705827051837,-500.0,0.00030958,2]
[312359536,1705827051934,-500.0,0.00030958,2]
[312359537,1705827051944,-913.25,0.00030958,2]
[312359538,1705827051953,-500.0,0.00030958,2]
[312359539,1705827051962,-813.09,0.00030958,2]
[312359540,1705827051973,-1000.0,0.00030958,2]
[312359541,1705827051983,-500.0,0.00030958,2]
[312359542,1705827051993,-775.2,0.00030958,2]
[312359543,1705827052003,-500.0,0.00030958,2]
[312359544,1705827052014,-2486.4,0.00030958,2]
[312359545,1705827052023,-500.0,0.00030958,2]
[312359546,1705827052032,-635.09409902,0.00030958,2]
[312359547,1705827052043,-1553.93,0.00030958,2]
[312359548,1705827052054,-992.49,0.00030958,2]
[312359549,1705827052064,-500.0,0.00030958,2]
[312359550,1705827052072,-500.0,0.00030958,2]
[312359551,1705827052082,-2053.12,0.00030958,2]
[312359552,1705827052092,-1273.02,0.00030958,2]
[312359553,1705827052101,-500.0,0.00030958,2]
[312359554,1705827052110,-663.47,0.00030958,2]
[312359555,1705827052120,-618.33,0.00030958,2]
[312359556,1705827052129,-9222.15,0.00030958,2]
[312359557,1705827052139,-1384.86328327,0.00030999,3]
[312359558,1705827052148,-121471.68395308,0.00031,2]
[312359559,1705827052418,-251.39133245,0.00025183,2]
[312359560,1705827053186,-154.70605849,0.00024677,2]
[312359561,1705827053196,-177.36991476,0.00025183,2]
[312359562,1705827053205,-965.30218695,0.00025184,2]
[312359563,1705827053560,-25710.5,0.00025184,2]
[312359564,1705827053756,-852.87,0.00025183,2]
[312359569,1705827140703,-154.70605849,0.00022664,4]
[312359570,1705827140726,-163.98813641,0.00025049,2]
[312359571,1705827140747,-711.64153599,0.00025149,2]
[312359572,1705827140770,-154.70605849,0.00025149,2]
[312359573,1705827140792,-6186.08,0.0002515,3]
[312359574,1705827140814,-11796.45,0.0002515,3]
[312359575,1705827140835,-588.23188464,0.00025153,2]
[312359576,1705827140856,-1293.51070224,0.00025153,2]
[312359577,1705827140877,-3745.3390844,0.00025153,2]
[312359578,1705827140896,-1579.05681645,0.00025153,2]
[312359579,1705827140917,-3129.43626556,0.00025153,2]
[312359580,1705827140939,-213.3962609,0.00025153,2]
[312359581,1705827140959,-1242.31465176,0.00025153,2]
[312359582,1705827140978,-644.2750614,0.00025153,2]
[312359583,1705827140998,-1993.11428292,0.00025153,2]
[312359584,1705827141019,-526.64913826,0.00025153,2]
[312359585,1705827141039,-166.64146166,0.00025153,2]
[312359586,1705827141248,-163.09864906,0.00025154,2]
[312359587,1705827141268,-323.06508436,0.00025154,2]
[312359588,1705827141288,-170.87637718,0.00025154,2]
[312359589,1705827141309,-154.70605849,0.00025154,2]
[312359590,1705827141329,-1253.15755419,0.00025154,2]
[312359591,1705827141350,-1696.365997,0.00025154,2]
[312359592,1705827141370,-1602.84826341,0.00025154,2]
[312359593,1705827141391,-154.70605849,0.00025154,2]
[312359594,1705827141411,-191.37607433,0.00025154,2]
[312359595,1705827141434,-679.97177576,0.00025154,2]
[312359596,1705827141455,-616.63420581,0.00025154,2]
[312359597,1705827141475,-260.71552206,0.00025154,7]
[312359598,1705827141496,-156.9264307,0.00025155,2]
[312359599,1705827141518,-211.49658438,0.00025155,2]
[312359600,1705827141538,-876.22858684,0.00025155,2]
[312359601,1705827141562,-357.4850409,0.00025156,2]
[312359602,1705827141582,-19697.53585665,0.0002516,2]
[312359603,1705827141604,-36958.2042176,0.0002516,2]
[312359604,1705827141624,-8760.12309796,0.0002516,2]
[312359605,1705827141645,-15217.05988375,0.0002516,2]
[312359606,1705827141666,-19863.4413156,0.0002516,2]
[312359607,1705827141687,-11501.43996591,0.00025171,2]
[312359614,1705827252874,155.79080147,0.000176,2]
[312359621,1705827364694,-167.700117,0.00023699,2]
[312359622,1705827364718,-387.299883,0.00025099,3]
[312359699,1705828232390,-6673.3,0.00019763,3]
[312359700,1705828232399,-555.24243185,0.00019772,2]
[312359701,1705828232408,-8760.12309796,0.00019772,2]
[312359702,1705828232417,-1811.41770485,0.00019772,2]
[312359703,1705828232427,-81194.50609145,0.00019773,2]
[312359704,1705828232436,-166.64146166,0.00019773,2]
[312359705,1705828232445,-1293.51070224,0.00019773,2]
[312359706,1705828232454,-1579.05681645,0.00019773,2]
[312359708,1705828232463,-156.9264307,0.00019773,2]
[312359710,1705828232472,-323.52155902,0.00019773,2]
[312359712,1705828232481,-588.23188464,0.00019773,2]
[312359714,1705828232491,-260.71552206,0.00019773,7]
[312359716,1705828232500,-21213.02445093,0.00019774,2]
[312359753,1705828238949,-154.70605849,0.00019762,3]
[312359754,1705828238961,-3745.3390844,0.00019762,2]
[312359755,1705828238973,-876.22858684,0.00019762,2]
[312359756,1705828238984,-679.97177576,0.00019762,2]
[312359757,1705828238995,-154.70605849,0.00019772,2]
[312359758,1705828239006,-15745.17976667,0.00019774,2]
[312359759,1705828239016,-1589.80949829,0.00019774,2]
[312359760,1705828239027,-711.64153599,0.00019774,2]
[312359761,1705828239038,-213.3962609,0.00019774,2]
[312359762,1705828239048,-616.63420581,0.00019777,2]
[312359763,1705828239060,-163.09864906,0.00019777,2]
[312359764,1705828239070,-2034.18918627,0.00019777,2]
[312359765,1705828239081,-154.70605849,0.00019777,2]
[312359766,1705828239091,-154.70605849,0.0001978,2]
[312359767,1705828239102,-15217.05988375,0.00019781,2]
[312359768,1705828239113,-265.43031538,0.00019781,2]
[312359769,1705828239123,-170.87637718,0.00019781,2]
[312359770,1705828239134,-1602.84826341,0.00019781,2]
[312359771,1705828239144,-211.49658438,0.00019781,2]
[312359772,1705828239155,-1993.11428292,0.00019781,2]
[312359773,1705828239166,-4813.00638666,0.00019782,2]
[312359774,1705828239176,-154.70605849,0.00019782,2]
[312359775,1705828239187,-154.70605849,0.00019782,2]
[312359776,1705828239198,-1242.31465176,0.00019783,2]
[312359777,1705828239208,-526.64913826,0.00019784,2]
[312359778,1705828239219,-13717.4313798,0.00019785,2]
[312359779,1705828239230,-303.11553415,0.00019808,2]
[312359780,1705828239242,-154.73694719,0.00019825,2]
[312359781,1705828239253,-185.52727142,0.0001992,2]
[312359782,1705828239263,-2102.94542064,0.00019993,2]
[312359783,1705828239274,-2073.50516209,0.00019993,2]
[312359784,1705828239284,-470.5887913,0.00019993,2]
[312359785,1705828239295,-380.0,0.0002,2]
[312359786,1705828239306,-154.70605849,0.0002,2]
[312359787,1705828239317,-1197.69360057,0.0002,2]
[312359788,1705828239327,-323.06508436,0.0002,2]
[312359789,1705828239338,-850.12372754,0.0002,2]
[312359790,1705828239348,-200.0,0.00021819,7]
[312359791,1705828239359,-167.700117,0.00021918,2]
[312359792,1705828239370,-425.88213647,0.00022,2]
[312359793,1705828239379,-1571.13875008,0.00023,2]
[312359794,1705828239388,-280.0,0.00024,7]
[312359795,1705828239398,-1825.57072994,0.00025099,2]
[312359796,1705828239407,-300.0,0.00025099,2]
[312359797,1705828239576,-156.26570952,0.00025099,2]
[312359798,1705828239591,-155.1899775,0.00025099,2]
[312359799,1705828239601,-862.58495294,0.00025099,2]
[312359800,1705828239611,-154.70605849,0.00025138,2]
[312359801,1705828239620,-10557.26036061,0.0002516,2]
[312359802,1705828239629,-645.12511844,0.00025169,2]
[312359803,1705828239639,-1740.68284208,0.00025169,2]
[312359804,1705828239648,-3963.5277251,0.00025169,2]
[312359805,1705828239657,-295.48284636,0.00025169,2]
[312359806,1705828239666,-178.53949807,0.00025169,2]
[312359807,1705828239676,-874.18725797,0.00025169,2]
[312359808,1705828239685,-230.9549782,0.00025169,2]
[312359809,1705828239694,-7945.19667066,0.00025169,2]
[312359810,1705828239703,-154.70605849,0.00025169,2]
[312359811,1705828239712,-314.1231325,0.00025169,2]
[312359812,1705828239721,-154.70605849,0.00025169,2]
[312359813,1705828239730,-241.71048008,0.0002518,2]
[312359814,1705828239739,-273.16778928,0.00025182,2]
[312359815,1705828239748,-830.18439258,0.00025182,2]
[312359816,1705828239757,-330.74401684,0.00025182,2]
[312359817,1705828239766,-157.5036737,0.00025182,2]
[312359818,1705828239775,-283.44554609,0.00025182,2]
[312359819,1705828239788,-155.60969558,0.00025182,2]
[312359820,1705828239797,-690.52950159,0.00025182,2]
[312359823,1705828239807,-261.40378031,0.00025182,2]
[312359825,1705828239816,-179.42507079,0.00025182,2]
[312359828,1705828239825,-678.05962952,0.00025182,2]
[312359831,1705828239834,-368.33507795,0.00025182,2]
[312359833,1705828239844,-680.19811622,0.00025183,2]
[312359834,1705828239852,-13132.23834986,0.00025183,2]
[312359836,1705828239865,-297.71865828,0.00025183,2]
[312359837,1705828239877,-155.72077482,0.00025183,2]
[312359838,1705828239888,-594.6659167,0.00025183,2]
[312359839,1705828239897,-156.29692174,0.00025183,2]
[312359840,1705828239908,-12519.40973022,0.00025183,7]
[312359841,1705828239919,-391.0,0.000264,15]
[312359842,1705828239930,-405.41592014,0.00027397,2]
[312359843,1705828239940,-261.52719804,0.000274,2]
[312359844,1705828239950,-3216.92126529,0.000275,2]
[312359845,1705828239960,-5000.0,0.00027924,5]
[312359846,1705828239969,-5000.0,0.00027924,5]
[312359847,1705828239980,-9848.02691375,0.00027924,4]
[312359848,1705828239990,-5000.0,0.00027924,5]
[312359849,1705828240000,-3693.55787645,0.00027924,3]
[312359850,1705828240009,-305.65151206,0.00028,2]
[312359851,1705828240019,-161.80545,0.00028767,2]
[312359852,1705828240028,-162.812824,0.00028767,2]
[312359853,1705828240038,-306.57327812,0.00028858,2]
[312359854,1705828240047,-278.18977244,0.00029,17]
[312359855,1705828240056,-200.0,0.0002904,15]
[312359856,1705828240066,-348.0,0.0002904,15]
[312359857,1705828240076,-200.0,0.000293,4]
[312359858,1705828240085,-183496.91483725,0.0002979,7]
[312359859,1705828240094,-158.23,0.00029853,2]
[312359860,1705828240104,-158.23,0.00029853,2]
[312359861,1705828240113,-44696.23418527,0.00029854,2]
[312359862,1705828240123,-38338.50138704,0.00029854,2]
[312359863,1705828240132,-155.0,0.00029958,2]
[312359864,1705828240141,-157.52678201,0.00029998,2]
[312359865,1705828240150,-157.22559662,0.00029998,2]
[312359866,1705828240159,-228.45013421,0.00029998,2]
[312359867,1705828240168,-267.70028902,0.00029998,2]
[312359868,1705828240179,-155.34695243,0.00029998,2]
[312359869,1705828240188,-183.50987477,0.00029998,2]
[312359870,1705828240198,-979.35063423,0.00029998,2]
[312359871,1705828240208,-500.0,0.00029998,2]
[312359872,1705828240217,-631.5949177,0.00029998,2]
[312359873,1705828240226,-500.0,0.00029998,2]
[312359874,1705828240236,-500.0,0.00029998,2]
[312359875,1705828240245,-500.0,0.00029998,2]
[312359876,1705828240254,-500.0,0.00029998,2]
[312359877,1705828240264,-500.0,0.00029998,2]
[312359878,1705828240274,-565.19544084,0.00029998,2]
[312359879,1705828240286,-205.82640093,0.00029998,2]
[312359880,1705828240296,-500.0,0.00029998,2]
[312359881,1705828240305,-566.03179009,0.00029998,2]
[312359882,1705828240315,-500.0,0.00029998,2]
[312359883,1705828240325,-203.12581616,0.00029998,2]
[312359884,1705828240335,-500.0,0.00029998,2]
[312359885,1705828240346,-500.0,0.00029998,2]
[312359886,1705828240358,-500.0,0.00029998,2]
[312359887,1705828240367,-500.0,0.00029998,2]
[312359888,1705828240376,-500.0,0.00029998,2]
[312359889,1705828240386,-500.0,0.00029998,2]
[312359890,1705828240396,-500.0,0.00029998,2]
[312359891,1705828240406,-500.0,0.00029998,2]
[312359892,1705828240415,-500.0,0.00029998,2]
[312359893,1705828240425,-500.0,0.00029998,2]
[312359894,1705828240434,-500.0,0.00029998,2]
[312359898,1705828240443,-500.0,0.00029998,2]
[312359901,1705828240452,-19682.08542135,0.00029999,2]
[312359904,1705828240461,-688.33469937,0.0003,4]
[312359906,1705828240470,-154.70605849,0.0003,4]
[312359908,1705828240479,-686.69676861,0.0003,4]
[312359910,1705828240488,-283.01176432,0.0003,3]
[312359913,1705828240498,-156.67960505,0.0003,4]
[312359915,1705828240509,-464.55162265,0.0003,2]
[312359916,1705828240518,-244.10022188,0.0003,4]
[312359917,1705828240527,-1200.0,0.0003,4]
[312359920,1705828240537,-170.69750452,0.0003,2]
[312359923,1705828240546,-2800.0,0.0003,2]
[312359926,1705828240555,-509.33037223,0.0003,3]
[312359928,1705828240564,-428.69621823,0.0003,2]
[312359930,1705828240573,-42526.21950807,0.0003,2]
[312359932,1705828240583,-22170.06612191,0.0003,2]
[312359934,1705828240593,-6196.71778501,0.0003,2]
[312359936,1705828240602,-30506.62834207,0.0003,3]
[312359938,1705828240611,-2104.74678798,0.0003,4]
[312359940,1705828240620,-18591.34333764,0.0003,2]
[312359942,1705828240630,-700.02589994,0.0003,2]
[312359943,1705828240640,-162.812824,0.0003,2]
[312359944,1705828240649,-1161.12480263,0.0003,2]
[312359945,1705828240658,-199.0,0.0003,2]
[312359946,1705828240669,-500.0,0.00030135,4]
[312359947,1705828240679,-500.0,0.00030135,4]
[312359948,1705828240688,-500.0,0.00030135,4]
[312359949,1705828240697,-544.65669933,0.00030135,4]
[312359950,1705828240706,-500.0,0.00030135,4]
[312359951,1705828240715,-500.0,0.00030135,4]
[312359952,1705828240724,-500.0,0.00030135,4]
[312359953,1705828240733,-500.0,0.00030135,4]
[312359954,1705828240743,-500.0,0.00030135,4]
[312359955,1705828240752,-214.54019858,0.00030135,4]
[312359956,1705828240762,-500.0,0.00030135,4]
[312359957,1705828240771,-500.0,0.00030135,4]
[312359958,1705828240780,-500.0,0.00030135,4]
[312359959,1705828240793,-551.15190376,0.00030135,4]
[312359960,1705828240802,-500.0,0.00030135,4]
[312359961,1705828240812,-500.0,0.00030135,4]
[312359962,1705828240822,-460.56897215,0.00030135,4]
[312359963,1705828240832,-500.0,0.00030135,4]
[312359964,1705828240843,-408.01532102,0.00030135,4]
[312359965,1705828240852,-500.0,0.00030135,4]
[312359966,1705828240863,-500.0,0.00030135,4]
[312359967,1705828240872,-500.0,0.00030135,4]
[312359968,1705828240881,-500.0,0.00030135,4]
[312359969,1705828240891,-500.0,0.00030135,4]
[312359970,1705828240899,-300.10463748,0.00030135,4]
[312359971,1705828240908,-638.48739459,0.00030136,2]
[312359972,1705828240919,-500.0,0.00030136,2]
[312359973,1705828240928,-500.0,0.00030136,2]
[312359974,1705828240938,-500.0,0.00030136,2]
[312359975,1705828240949,-500.0,0.00030136,2]
[312359976,1705828240960,-1031.36,0.00030136,2]
[312359977,1705828240970,-500.0,0.00030136,2]
[312359978,1705828240979,-500.0,0.00030136,2]
[312359979,1705828240989,-500.0,0.00030136,2]
[312359980,1705828240998,-500.0,0.00030136,2]
[312359981,1705828241007,-500.0,0.00030136,2]
[312359982,1705828241017,-437.94230908,0.00030136,2]
[312359983,1705828241026,-458.1347498,0.00030136,2]
[312359984,1705828241036,-500.0,0.00030136,2]
[312359985,1705828241045,-500.0,0.00030136,2]
[312359986,1705828241055,-941.35,0.00030136,2]
[312359987,1705828241065,-500.0,0.00030136,2]
[312359988,1705828241074,-511.9404377,0.00030136,2]
[312359989,1705828241084,-500.0,0.00030136,2]
[312359990,1705828241093,-500.0,0.00030136,2]
[312359991,1705828241102,-500.0,0.00030136,2]
[312359992,1705828241111,-500.0,0.00030136,2]
[312359993,1705828241120,-500.0,0.00030136,2]
[312359994,1705828241130,-526.31782774,0.00030136,2]
[312359995,1705828241139,-500.0,0.00030136,2]
[312359996,1705828241148,-500.0,0.00030136,2]
[312359997,1705828241158,-500.0,0.00030136,2]
[312359998,1705828241167,-1020.71,0.00030136,2]
[312359999,1705828241176,-500.0,0.00030136,2]
[312360000,1705828241186,-500.0,0.00030136,2]
[312360001,1705828241195,-500.0,0.00030136,2]
[312360002,1705828241204,-500.0,0.00030136,2]
[312360003,1705828241213,-500.0,0.00030136,2]
[312360004,1705828241223,-594.84353903,0.00030136,2]
[312360005,1705828241232,-500.0,0.00030136,2]
[312360006,1705828241241,-500.0,0.00030136,2]
[312360007,1705828241250,-500.0,0.00030136,2]
[312360008,1705828241259,-540.95,0.00030136,2]
[312360009,1705828241268,-672.17,0.00030136,2]
[312360010,1705828241277,-1000.0,0.00030136,2]
[312360011,1705828241286,-500.0,0.00030136,2]
[312360012,1705828241295,-577.9,0.00030136,2]
[312360013,1705828241304,-500.0,0.00030136,2]
[312360014,1705828241315,-500.0,0.00030136,2]
[312360015,1705828241324,-500.0,0.00030136,2]
[312360016,1705828241333,-579.56324903,0.00030136,2]
[312360017,1705828241342,-500.0,0.00030136,2]
[312360019,1705828241352,-500.0,0.00030136,2]
[312360020,1705828241362,-500.0,0.00030136,2]
[312360021,1705828241371,-500.0,0.00030136,14]
[312360022,1705828241380,-500.0,0.00030136,2]
[312360023,1705828241389,-500.0,0.00030136,2]
[312360024,1705828241399,-500.0,0.00030136,2]
[312360025,1705828241409,-500.0,0.00030136,2]
[312360026,1705828241419,-608.18,0.00030136,2]
[312360027,1705828241429,-500.0,0.00030136,2]
[312360028,1705828241438,-500.0,0.00030136,2]
[312360029,1705828241447,-601.9,0.00030136,2]
[312360030,1705828241456,-200.0,0.00030136,2]
[312360031,1705828241465,-571.94,0.00030136,2]
[312360032,1705828241474,-500.0,0.00030136,2]
[312360033,1705828241483,-475.08982791,0.00030136,2]
[312360034,1705828241492,-563.34,0.00030136,2]
[312360035,1705828241501,-515.04596927,0.00030136,2]
[312360036,1705828241511,-500.0,0.00030136,2]
[312360037,1705828241520,-500.0,0.00030136,2]
[312360038,1705828241529,-500.0,0.00030136,2]
[312360039,1705828241538,-500.0,0.00030136,2]
[312360040,1705828241547,-500.0,0.00030136,2]
[312360041,1705828241557,-963.4,0.00030136,2]
[312360042,1705828241566,-500.0,0.00030136,2]
[312360043,1705828241575,-272.94732908,0.00030136,2]
[312360044,1705828241584,-500.0,0.00030136,2]
[312360045,1705828241593,-500.0,0.00030136,2]
[312360046,1705828241602,-500.0,0.00030136,2]
[312360047,1705828241611,-1999.47,0.00030136,2]
[312360048,1705828241620,-264.95436208,0.00030136,2]
[312360049,1705828241629,-2719.64,0.00030136,2]
[312360050,1705828241638,-500.0,0.00030136,2]
[312360051,1705828241647,-500.0,0.00030136,2]
[312360052,1705828241656,-585.37,0.00030136,2]
[312360053,1705828241665,-500.0,0.00030136,2]
[312360054,1705828241674,-500.0,0.00030136,2]
[312360055,1705828241683,-674.02,0.00030136,2]
[312360056,1705828241692,-606.58,0.00030136,2]
[312360057,1705828241701,-359.42921145,0.00030136,2]
[312360058,1705828241710,-500.0,0.00030136,2]
[312360059,1705828241719,-500.0,0.00030136,2]
[312360060,1705828241728,-500.0,0.00030136,2]
[312360061,1705828241739,-500.0,0.00030136,2]
[312360062,1705828241749,-500.0,0.00030136,2]
[312360063,1705828241759,-1188.66,0.00030136,2]
[312360064,1705828241769,-580.88,0.00030136,2]
[312360065,1705828241779,-500.0,0.00030136,2]
[312360066,1705828241792,-500.0,0.00030136,2]
[312360067,1705828241801,-500.0,0.00030136,2]
[312360068,1705828241811,-500.0,0.00030136,2]
[312360069,1705828241820,-500.0,0.00030136,2]
[312360070,1705828241829,-1395.67,0.00030136,2]
[312360071,1705828241838,-787.52,0.00030136,2]
[312360072,1705828241847,-500.0,0.00030136,2]
[312360073,1705828241856,-500.0,0.00030136,2]
[312360074,1705828241867,-500.0,0.00030136,2]
[312360075,1705828241875,-500.0,0.00030136,2]
[312360076,1705828241885,-500.0,0.00030136,2]
[312360077,1705828241893,-500.0,0.00030136,2]
[312360078,1705828241902,-500.0,0.00030136,2]
[312360079,1705828241911,-504.61396894,0.00030136,2]
[312360080,1705828241920,-500.0,0.00030136,2]
[312360081,1705828241930,-500.0,0.00030136,2]
[312360082,1705828241939,-500.0,0.00030136,2]
[312360083,1705828241948,-500.0,0.00030136,2]
[312360084,1705828241958,-150.0,0.00030136,2]
[312360085,1705828241967,-501.70341618,0.00030136,2]
[312360086,1705828241976,-610.68850018,0.00030136,2]
[312360087,1705828241985,-500.0,0.00030136,2]
[312360088,1705828241994,-462.70107331,0.00030136,2]
[312360089,1705828242004,-1283.99,0.00030136,2]
[312360090,1705828242013,-500.0,0.00030136,2]
[312360091,1705828242022,-500.0,0.00030136,2]
[312360092,1705828242031,-677.36,0.00030136,2]
[312360093,1705828242040,-592.57,0.00030136,2]
[312360094,1705828242049,-500.0,0.00030136,2]
[312360095,1705828242058,-500.0,0.00030136,2]
[312360096,1705828242067,-500.0,0.00030136,2]
[312360097,1705828242076,-500.0,0.00030136,2]
[312360098,1705828242085,-500.96958819,0.00030136,2]
[312360099,1705828242094,-500.0,0.00030136,2]
[312360100,1705828242103,-500.0,0.00030136,2]
[312360101,1705828242112,-500.0,0.00030136,2]
[312360102,1705828242121,-500.0,0.00030136,2]
[312360103,1705828242130,-951.13,0.00030136,2]
[312360104,1705828242139,-503.93060424,0.00030136,2]
[312360105,1705828242148,-1219.97,0.00030136,2]
[312360106,1705828242157,-622.51,0.00030136,2]
[312360107,1705828242166,-813.13,0.00030136,2]
[312360108,1705828242175,-501.1849965,0.00030136,2]
[312360109,1705828242184,-8837.89,0.00030136,2]
[312360110,1705828242194,-500.0,0.00030136,2]
[312360111,1705828242203,-26747.16,0.00030136,2]
[312360112,1705828242212,-546.19,0.00030136,2]
[312360113,1705828242222,-1977.49,0.00030136,2]
[312360114,1705828242232,-500.90581918,0.00030136,2]
[312360115,1705828242241,-3146.07,0.00030136,2]
[312360116,1705828242251,-500.0,0.00030136,2]
[312360117,1705828242260,-500.0,0.00030136,2]
[312360118,1705828242269,-502.52181998,0.00030136,2]
[312360119,1705828242278,-500.0,0.00030136,2]
[312360120,1705828242289,-6226.39,0.00030136,2]
[312360121,1705828242298,-500.0,0.00030136,2]
[312360122,1705828242308,-500.0,0.00030136,2]
[312360123,1705828242318,-502.39019566,0.00030136,2]
[312360124,1705828242327,-500.0,0.00030136,2]
[312360125,1705828242339,-500.0,0.00030136,2]
[312360126,1705828242349,-500.0,0.00030136,2]
[312360127,1705828242360,-500.0,0.00030136,2]
[312360128,1705828242369,-500.0,0.00030136,2]
[312360129,1705828242378,-500.74589736,0.00030136,2]
[312360130,1705828242388,-500.0,0.00030136,2]
[312360131,1705828242399,-500.0,0.00030136,2]
[312360132,1705828242408,-500.0,0.00030136,2]
[312360133,1705828242418,-500.0,0.00030136,2]
[312360134,1705828242428,-500.0,0.00030136,2]
[312360135,1705828242436,-500.96434093,0.00030136,2]
[312360136,1705828242446,-237.04279308,0.00030136,2]
[312360137,1705828242455,-500.0,0.00030136,2]
[312360138,1705828242464,-2306.94,0.00030136,2]
[312360139,1705828242473,-500.0,0.00030136,2]
[312360140,1705828242483,-1300.84,0.00030136,2]
[312360141,1705828242493,-664.16,0.00030136,2]
[312360142,1705828242504,-500.0,0.00030136,2]
[312360143,1705828242514,-500.0,0.00030136,2]
[312360144,1705828242524,-500.0,0.00030136,2]
[312360145,1705828242533,-1215.44,0.00030136,2]
[312360146,1705828242542,-500.0,0.00030136,2]
[312360147,1705828242552,-500.0,0.00030136,2]
[312360148,1705828242562,-500.0,0.00030136,2]
[312360149,1705828242572,-500.0,0.00030136,7]
[312360150,1705828242582,-500.0,0.00030136,2]
[312360151,1705828242592,-500.0,0.00030136,2]
[312360152,1705828242603,-1216.8,0.00030136,2]